Cogmind - Beta 17 @@@ ROGUE MODE // 2026.07.02 @ 16:56:31 Player: KURIIRI Result: Self-destructed Performance ------------- Evolutions (0) 0 Regions Visited (4) 800 Robots Destroyed (47) 235 Value Destroyed (1233) 1233 Prototype IDs (24) 480 Alien Tech Used (0) 0 Bonus (2695) 2695 TOTAL SCORE: 5443 Bonus ------- Delivered SUBCON Basin 2000 Registered with UFD 300 Met Optimus in HQ 500 Friendly Fire -105 Cogmind --------- Core Integrity 60/250 Matter 260/300 Energy 150/150 System Corruption 0% Temperature Cool (0) Movement Rolling (125) Ox3 Location -9/Scraptown Parts ------- > --- POWER (1) -------- Micro Fission Core (fused) > --- PROPULSION (2) --- Improved Treads (fused) Wheel > --- UTILITY (2) ------ Large Storage Unit Tech Extrapolator > --- WEAPON (2) ------- KE Penetrator (fused) Magnetic Acceleration Cannon > --- INVENTORY (15) --- Disposable Heat Sink Weight Redist. System Visual Processing Unit Advanced Visual Processing Unit Experimental Sensor Array Seismic Detector Scrapoid Pod Heavy Plasma Cannon Datajack Botcube Peak State ------------ > --- POWER ------------ Light Deuterium Engine > --- PROPULSION ------- Armored Treads Advanced Treads > --- UTILITY ---------- Large Storage Unit Self-contained Transmogrifier > --- WEAPON ----------- Subdweller Machine Gun CPS Tube > --- INVENTORY -------- SUBCON Basin [Rating: 42] Favorites ----------- Power Light Ion Engine Engine Light Ion Engine Power Core Micro Fission Core Propulsion Light Treads Treads Light Treads Leg Aluminum Leg Wheel Wheel Hover Unit Improved Hover Unit Utility Large Storage Unit Device Self-contained Transmogrifier Storage Large Storage Unit Processor Tech Extrapolator Protection Scrap Shield Weapon Subdweller Machine Gun Energy Gun EM Pulse Gun Energy Cannon Subdweller Beam Cannon Ballistic Gun Subdweller Machine Gun Ballistic Cannon Magnetic Acceleration Cannon Launcher EMP Blaster Special Weapon CPS Tube Impact Weapon Hammer Slashing Weapon Makeshift Axe Build | -11 -10 -10 -9 -9 ------- Run | Yrd Mat Sub Rec Scr Slots Evolved . | . . . . . Power . | . . . . . Propulsion . | . . . . . Utility . | . . . . . Weapon . | . . . . . Parts Attached 28 | 3 8 13 . 4 Power 1 | . . 1 . . Engine 1 | . . 1 . . Core . | . . . . . Reactor . | . . . . . Propulsion 7 | 2 . 3 . 2 Treads 4 | 2 . 2 . . Leg . | . . . . . Wheel 2 | . . 1 . 1 Hover 1 | . . . . 1 Flight . | . . . . . Utility 7 | 1 2 3 . 1 Device 2 | 1 . 1 . . Storage 1 | . 1 . . . Processor 1 | . . . . 1 Hackware . | . . . . . Protection 3 | . 1 2 . . Artifact . | . . . . . Weapon 13 | . 6 6 . 1 Energy Gun 2 | . 2 . . . Energy Cannon 2 | . 1 1 . . Ballistic Gun 4 | . 1 3 . . Ballistic Cannon 1 | . . . . 1 Launcher 1 | . 1 . . . Special Weapon . | . . . . . Impact Weapon 2 | . 1 1 . . Slashing Weapon 1 | . . 1 . . Piercing Weapon . | . . . . . Special Melee Weapon . | . . . . . Unidentified Prototypes 1 | . . 1 . . Parts Lost 3 | . . 3 . . Power . | . . . . . Propulsion 1 | . . 1 . . Utility 1 | . . 1 . . Weapon 1 | . . 1 . . Highest Loss Streak 2 | . . 2 . . To Critical Strikes . | . . . . . Average Backups 6 | 5 12 5 . 7 Power . | 1 1 . . . Propulsion 1 | 3 4 1 . . Utility 2 | . 3 . . 4 Weapon 2 | 1 4 3 . 1 Tool/Special . | . . . . . Unused Backups 27 | 6 2 9 . 10 Power 2 | 1 . 1 . . Propulsion 6 | 2 1 3 . . Utility 9 | 1 . 2 . 6 Weapon 8 | 2 1 3 . 2 Tool/Special 2 | . . . . 2 Average Slot Usage (%) 94 | . 100 90 100 97 Engine 9 | . 14 14 14 . Core 4 | . . . . 14 Treads 23 | . 28 24 28 18 Wheel 3 | . . 3 . 5 Device 5 | . 3 1 14 8 Storage 10 | . 14 7 14 14 Processor 1 | . . . . 5 Protection 6 | . 10 10 . . Energy Gun 4 | . 12 . . 8 Energy Cannon 4 | . . 7 1 1 Ballistic Gun 11 | . 9 16 6 6 Ballistic Cannon 2 | . . . . 9 Impact Weapon 3 | . 3 2 14 2 Peak Build Rating 42 | 7 8 42 41 34 Average Rating 20 | 6 7 16 33 29 On Entrance 17 | 6 7 8 39 26 Avg Prop Armor Cover (%) 9 | . . 4 . 11 Naked Turns . | . . . . . Heaviest Build 43 | 12 31 40 43 38 Greatest Support 58 | 40 40 45 50 58 Greatest Overweight (x) 12 | . . 1 . 12 Average Overweight (x) . | . . . . 1 Largest Inventory Capacity 15 | 8 15 15 15 15 Average Capacity 12 | 8 14 10 15 15 Most Carried 15 | 6 15 15 15 11 Average Carried 8 | 5 12 8 9 7 Final Capacity 15 | 8 15 15 15 15 Final Carried 15 | 4 15 15 6 11 Transmogrified Parts 29 | . . 6 9 14 Integrity Recovered 246 | . . 88 42 116 Class Distribution -------------------- 81% | Mutant 18% | Subdweller-Mutant Dominant Class ---------------- Mutant | -10/Materials Mutant | -10/Subcaves Mutant | -9/Recycling Mutant | -9/Scraptown Resources | -11 -10 -10 -9 -9 ----------- Run | Yrd Mat Sub Rec Scr Matter Collected 1307 | 226 498 553 30 . Remotely . | . . . . . Salvage Created 1490 | 217 627 595 51 . Parts 92 | 17 36 35 4 . Haulers Intercepted 2 | . 2 . . . Recyclers Shooed 1 | . 1 . . . Parts Field Recycled . | . . . . . Retrieved Matter . | . . . . . Parts Self-Destructed 9 | . . 9 . . Prevented . | . . . . . Parts Restored . | . . . . . Kills | -11 -10 -10 -9 -9 ------- Run | Yrd Mat Sub Rec Scr Combat Hostiles Destroyed 30 | . 13 16 1 . Melee 3 | . 2 . 1 . Guns 10 | . 4 6 . . Cannons 2 | . . 2 . . AOE 12 | . 5 7 . . Classes Destroyed 12 | 2 8 2 . . Worker 1 | . 1 . . . Builder 3 | . 3 . . . Tunneler 5 | 5 . . . . Hauler 2 | . 2 . . . Recycler 2 | 1 1 . . . Operator 2 | . 2 . . . Watcher 2 | . 2 . . . Swarmer 3 | . 3 . . . Grunt 9 | . 9 . . . Sentry 2 | . . 1 1 . Artisan 2 | . . 2 . . Subdweller 16 | . 1 15 . . Best Kill Streak 5 | 4 5 4 1 . Combat Bots Only 4 | . 3 4 1 . Max Kills in Single Turn 2 | 1 2 2 1 . Gunslinging . | . . . . . Exploded 2 | . 2 2 . . Melee 1 | . 1 . 1 . Uniques/NPCs Destroyed . | . . . . . Combat | -11 -10 -10 -9 -9 -------- Run | Yrd Mat Sub Rec Scr Hostile Shots Fired 71 | . 24 47 . . Missed 19 | . 5 14 . . Hits 52 | . 19 33 . . Projectile 52 | . 19 33 . . Critical Strikes 1 | . . 1 . . Damage Taken 1003 | . 229 774 . . Core 190 | . 14 176 . . Absorbed by Shields . | . . . . . Core Remaining (%) 100 | 100 . . . . Volleys Fired 149 | 18 41 90 . . Largest 2 | 2 2 2 . . Hottest 110 | 60 60 110 . . Shots Fired 224 | 36 68 120 . . Gun 179 | 36 57 86 . . Cannon 22 | . . 22 . . Launcher 23 | . 11 12 . . Special . | . . . . . Kinetic 133 | 18 29 86 . . Thermal 67 | 18 27 22 . . Explosive 23 | . 11 12 . . Electromagnetic 1 | . 1 . . . Robot Hit Streak 12 | 6 9 12 . . Robot Miss Streak 4 | 3 3 4 . . Penetration Max . | . . . . . Secondary Targets . | . . . . . Shots Hit Robots 123 | 19 47 56 1 . Core Hits 70 | 7 30 32 1 . Critical Kills 1 | . . 1 . . Critical Parts Destroyed 5 | . 3 2 . . Critical Strikes 6 | . 3 3 . . Destroy 2 | . . 2 . . Smash 4 | . 3 1 . . Melee Attacks 31 | . 12 18 1 . Impact 29 | . 12 16 1 . Slashing 2 | . . 2 . . Piercing . | . . . . . Sneak Attacks 6 | . 6 . . . Combat Hostiles 1 | . 1 . . . Follow-up Attacks . | . . . . . Damage Inflicted 3633 | 236 1437 1939 21 . Guns 1315 | 233 453 629 . . Cannons 353 | . . 353 . . Explosions 1491 | . 565 926 . . Melee 462 | . 410 31 21 . Ramming 12 | 3 9 . . . Kinetic 996 | 121 246 629 . . Thermal 656 | 112 191 353 . . Explosive 1491 | . 565 926 . . Electromagnetic 16 | . 16 . . . Impact 462 | . 410 31 21 . Slashing . | . . . . . Piercing . | . . . . . Highest Corruption . | . . . . . Average Corruption . | . . . . . Corruption Purged . | . . . . . Corruption Blocked . | . . . . . Overload Shots . | . . . . . Overflow Damage 311 | . 280 31 . . Projectiles . | . . . . . Explosions 12 | . 12 . . . Melee 299 | . 268 31 . . Knockbacks 4 | . 4 . . . Impact 4 | . 4 . . . Kinetic . | . . . . . Secondary . | . . . . . Self-Inflicted Damage 10 | . . 10 . . Shots 1 | . . 1 . . Rammed 3 | 1 2 . . . Targets Rammed 3 | 1 2 . . . Kicked . | . . . . . Crushed . | . . . . . Highest Temperature 259 | 20 54 259 . . Average Temperature 28 | 20 17 78 . . Received Heat Transfer 501 | . 78 423 . . Siege Activations . | . . . . . Martial Activations . | . . . . . Shielding Activations . | . . . . . Robots Disrupted . | . . . . . Combat Hostiles . | . . . . . Robots Corrupted 4 | . 3 1 . . Combat Hostiles 3 | . 2 1 . . Parts Fried 9 | . 7 2 . . Impact Corruptions 10 | . 9 1 . . Robots Melted . | . . . . . Combat Hostiles . | . . . . . Parts Melted . | . . . . . Heat Transferred 1255 | 250 450 555 . . Parts Sabotaged . | . . . . . Parts Stolen . | . . . . . Parts Stripped . | . . . . . Power Chain Reactions . | . . . . . Alert | -11 -10 -10 -9 -9 ------- Run | Yrd Mat Sub Rec Scr Maximum Alert Level . | . . . . . Low Security (%) 100 | 100 100 . 100 . Level 1 . | . . . . . Level 2 . | . . . . . Level 3 . | . . . . . Level 4 . | . . . . . Level 5 . | . . . . . High Security . | . . . . . Max Security . | . . . . . Peak Influence 160 | 15 160 . 30 . Initial . | . . . . . Average 30 | 4 49 . 2 . Influence Increases 555 | 30 449 20 56 . Destroy 0b10 Robot/C 280 | . 240 20 20 . Destroy 0b10 Robot/NC 85 | 30 55 . . . Destroy Leader 58 | . 58 . . . Successful Hack 6 | . . . 6 . Select Force Hacks 60 | . 30 . 30 . Disable Machine 15 | . 15 . . . Destroy Structure 51 | . 51 . . . Influence Decreases 555 | 30 406 63 56 . Entered New Map 22 | . . 22 . . Time Decay 533 | 30 406 41 56 . Squads Dispatched 4 | . 4 . . . Investigation 2 | . 2 . . . Extermination . | . . . . . Reinforcement 2 | . 2 . . . Assault . | . . . . . Garrison . | . . . . . Intercept . | . . . . . Searches Triggered . | . . . . . Construction Impeded . | . . . . . Haulers Reinforced . | . . . . . Active Scanning Responses . | . . . . . Cargo Convoy Interrupts . | . . . . . Stealth | -11 -10 -10 -9 -9 --------- Run | Yrd Mat Sub Rec Scr Distress Signals 3 | . 3 . . . Communications Jammed . | . . . . . Distress Signals . | . . . . . Times Spotted 37 | . 20 16 1 . Peak Tracking Total 3 | . 3 3 1 . Tactical Retreats . | . . . . . Traps | -11 -10 -10 -9 -9 ------- Run | Yrd Mat Sub Rec Scr Traps Triggered 3 | . 3 . . . Indirectly . | . . . . . Trap Hack Attempts . | . . . . . Triggered . | . . . . . Disarmed . | . . . . . Reprogrammed . | . . . . . Reused . | . . . . . Traps Extracted . | . . . . . Installed . | . . . . . Triggered . | . . . . . Machines | -11 -10 -10 -9 -9 ---------- Run | Yrd Mat Sub Rec Scr Machines Disabled 1 | . 1 . . . Max in Single Turn 1 | . 1 . . . Machines Repaired . | . . . . . Machines Dismantled . | . . . . . Machines Sabotaged . | . . . . . Overloaded Fab Kills . | . . . . . Hacking | -11 -10 -10 -9 -9 --------- Run | Yrd Mat Sub Rec Scr Machines Accessed 8 | . 2 3 2 1 Terminals 2 | . 1 . 1 . Fabricators . | . . . . . Repair Stations . | . . . . . Recycling Units 2 | . 1 . 1 . Scanalyzers . | . . . . . Garrison Access . | . . . . . Total Hacks 13 | . 3 3 4 3 Successful 11 | . 2 3 3 3 Failed 1 | . . . 1 . Catastrophic . | . . . . . Database Lockouts 1 | . 1 . . . Manual 7 | . 3 . 4 . Terminals 5 | . 2 . 3 . Fabricators . | . . . . . Repair Stations . | . . . . . Recycling Units 2 | . 1 . 1 . Scanalyzers . | . . . . . Garrison Access . | . . . . . Terminal Hacks 9 | . 1 3 2 3 Record 3 | . . . . 3 Robot Analysis 3 | . 1 . 2 . Open Door 1 | . . 1 . . Proto ID Catalog 1 | . . 1 . . Release Object 1 | . . 1 . . Fabricator Hacks . | . . . . . Repair Station Hacks . | . . . . . Recycling Unit Hacks . | . . . . . Scanalyzer . | . . . . . Garrison Access Hacks . | . . . . . Unauthorized Hacks 2 | . 1 . 1 . Terminals . | . . . . . Fabricators . | . . . . . Repair Stations . | . . . . . Recycling Units 2 | . 1 . 1 . Tunnel 2 | . 1 . 1 . Scanalyzers . | . . . . . Garrison Access . | . . . . . Data Cores Recovered 1 | . 1 . . . Used . | . . . . . Hacking Detections 2 | . 1 . 1 . Full Trace Events . | . . . . . Feedback Events . | . . . . . Feedback Blocked . | . . . . . Robot Schematics Acquired . | . . . . . Robots Built . | . . . . . Authchips . | . . . . . Time . | . . . . . Total Robot Build Rating . | . . . . . Part Schematics Acquired 4 | . . . . 4 Parts Built . | . . . . . Authchips . | . . . . . Time . | . . . . . Total Part Build Rating . | . . . . . Part Studies Acquired . | . . . . . Parts Repaired . | . . . . . Time . | . . . . . Parts Recycled . | . . . . . Recycled Matter . | . . . . . Retrieved Matter . | . . . . . Retrieved Components . | . . . . . Parts Scanalyzed . | . . . . . Part Schematics Acquired . | . . . . . Parts Damaged . | . . . . . Bothacking | -11 -10 -10 -9 -9 ------------ Run | Yrd Mat Sub Rec Scr Used RIF Installer . | . . . . . Robots Hacked . | . . . . . Non-combat . | . . . . . Combat . | . . . . . Robot Hacks Applied . | . . . . . Relay Couplers Released . | . . . . . Fabnet Peak Effective % . | . . . . . Robots Rewired . | . . . . . Allies Hacked . | . . . . . Hacks Repelled . | . . . . . Allies | -11 -10 -10 -9 -9 -------- Run | Yrd Mat Sub Rec Scr Total Allies . | . . . . . Largest Group . | . . . . . Highest-Rated Group . | . . . . . Highest-Rated Ally . | . . . . . Total Orders . | . . . . . Ally Attacks . | . . . . . Total Damage . | . . . . . Kills . | . . . . . Allies Corrupted . | . . . . . Allies Melted . | . . . . . Intel | -11 -10 -10 -9 -9 ------- Run | Yrd Mat Sub Rec Scr Active Infowar (turns) 340 | 11 329 . . . Seismic 340 | 11 329 . . . Robot Analysis Total 3 | . 1 . 2 . Derelict Logs Recovered 3 | . . 3 . . Drone Launches . | . . . . . Drone Recoveries . | . . . . . Exploration | -11 -10 -10 -9 -9 ------------- Run | Yrd Mat Sub Rec Scr Turns Passed 9627 | 104 1302 4559 787 2875 Spaces Moved 4883 | 11 501 2340 308 1723 Core 32 | . . . . 32 Treads 4036 | 4 501 2340 308 883 Legs 7 | 7 . . . . Wheels 808 | . . . . 808 Hover . | . . . . . Flight . | . . . . . Fastest Speed 120 | 120 160 152 145 125 Average Speed 166 | 134 160 175 149 157 Slowest Speed 650 | 160 160 260 152 650 Overloaded Moves . | . . . . . Propulsion Burnouts . | . . . . . Robots Hopped . | . . . . . Potential Cave-ins 2 | . . 2 . . Cave-ins Triggered . | . . . . . Exploration Rate (%) 59 | 2 81 87 41 85 Regions Visited 4 Branch Regions 3 Pre-discovered Areas 5 | . 1 3 1 . Known Exits Taken . | . . . . . Unknown Exits Taken 4 | 1 1 1 1 . Scrap Searched 15 | . . 12 . 3 Spaces Dug 19 | . 1 18 . . Terrain Destroyed 158 | . 65 93 . . Melee 7 | . 1 6 . . Projectile 12 | . . 12 . . AOE 139 | . 64 75 . . Terrain Rammed . | . . . . . Walls Destroyed . | . . . . . Machines Disabled . | . . . . . Actions | -11 -10 -10 -9 -9 --------- Run | Yrd Mat Sub Rec Scr Total 6117 | 64 907 2634 635 1877 Wait 927 | 30 327 120 314 136 Move 4880 | 11 500 2339 307 1723 Hop . | . . . . . Pick Up 39 | . 12 9 9 9 Fast Attach 12 | 1 2 9 . . Attach 8 | 2 . 3 . 3 Detach 3 | . . 3 . . Swap 27 | . 9 17 . 1 Drop 34 | 2 2 21 4 5 Fire 149 | 18 41 90 . . Melee 31 | . 12 18 1 . Ram . | . . . . . Kick . | . . . . . Crush 2 | . 2 . . . Escape Stasis . | . . . . . Rewire . | . . . . . Trap . | . . . . . Miscellaneous 5 | . . 5 . . Route ------- -11/Scrapyard -10/Materials (discovered 4 exits: [*Mat x2] / [*Min] / *Sub) -10/Subcaves (discovered 4 exits: [*Mat x2] / *Rec / *Scr) -9/Recycling -9/Scraptown (discovered 2 exits: [*Fac x2]) History --------- Turn | Location | Event 53 | -11/Scrapyard | Discovered new exit (range 2) 105 | -11/Scrapyard | Entered Materials 274 | -10/Materials | Central database locked down 302 | -10/Materials | Build established: Mutant 344 | -10/Materials | Discovered new exit (range 12) 363 | -10/Materials | Discovered new exit (range 14) 712 | -10/Materials | Discovered new exit (range 6) 905 | -10/Materials | Derelicts attacked the area 1165 | -10/Materials | Discovered new exit (range 15) 1407 | -10/Materials | Entered Subcaves 1408 | -10/Subcaves | Approached by a straggling Scientist 1416 | -10/Subcaves | Learned location of Zion (-7) 1416 | -10/Subcaves | Met a Zionite searching for "candidates" 1632 | -10/Subcaves | Ambushed by Subdweller buried in earth 1963 | -10/Subcaves | Shifting Twisted Machinery released Sub. Optics 2109 | -10/Subcaves | Core integrity fell below 50% 2574 | -10/Subcaves | Ambushed by Subdweller buried in earth 2588 | -10/Subcaves | Learned Materials security intel 3082 | -10/Subcaves | Build established: Subdweller-Mutant 3165 | -10/Subcaves | Scientist uncovered a shortcut to Scraptown 3223 | -10/Subcaves | Visited 4L-MR0's lab 3296 | -10/Subcaves | Discovered new exit (range 10) 3583 | -10/Subcaves | Learned location of Storage (-9) 3803 | -10/Subcaves | Shifting Twisted Machinery released Hvy. Riot Gun 4123 | -10/Subcaves | Shifting Twisted Machinery released Battle Rifle 4138 | -10/Subcaves | Learned location of Recycling (-9) 4204 | -10/Subcaves | Discovered new exit (range 15) 4217 | -10/Subcaves | Shifting Twisted Machinery released Mak. System Restoration Module 4357 | -10/Subcaves | Shifting Twisted Machinery released Sub. Monowheel 4982 | -10/Subcaves | Build established: Mutant 5090 | -10/Subcaves | Found SUBCON Basin 5424 | -10/Subcaves | Found Prototype Device 5424 | -10/Subcaves | Identified Sfc. Transmogrifier 5962 | -10/Subcaves | Discovered new exit (range 3) 5966 | -10/Subcaves | Entered Recycling 6183 | -9/Recycling | Scanned before Scraplab entrance 6204 | -9/Recycling | Entered Scraplab 6751 | -9/Recycling | Discovered new exit (range 2) 6753 | -9/Recycling | Entered Scraptown 6948 | -9/Scraptown | Visited UFD Registry 6948 | -9/Scraptown | Registered with UFD as "Phasecircuit" 6970 | -9/Scraptown | Visited Awakened 6993 | -9/Scraptown | Visited Shadow of the Wyrm 7034 | -9/Scraptown | Discovered new exit (range 11) 7169 | -9/Scraptown | Heard Great Nut preacher, LISTEN AND RECITE! 7465 | -9/Scraptown | Visited Science Testing Area 7518 | -9/Scraptown | Visited Botcube Research 7542 | -9/Scraptown | Visited A0-MCA Data Center 7551 | -9/Scraptown | Given a C rating by A0-MCA 7596 | -9/Scraptown | Visited LU-1G1's Boring Crew 7710 | -9/Scraptown | Visited Infowarlord's Domain 7732 | -9/Scraptown | Visited Scrapoid Pod Storage 7754 | -9/Scraptown | Visited Science Guys 7818 | -9/Scraptown | Visited IN-MT5's Study 7839 | -9/Scraptown | Visited Cave Peace 7849 | -9/Scraptown | Visited The Evicted 8626 | -9/Scraptown | Tech Extrapolator generated special schematic: Deep Structural Scanner 8631 | -9/Scraptown | Visited Abandonware Association 8671 | -9/Scraptown | Learned abandonware demo "REPAIR.EXE" 8978 | -9/Scraptown | Visited Comm Corps 9322 | -9/Scraptown | Found Scrapoid Pod 9390 | -9/Scraptown | Found Exp. Sensor Array 9538 | -9/Scraptown | Met Optimus 9538 | -9/Scraptown | Accepted into 0bPrime 9582 | -9/Scraptown | Found Botcube 9620 | -9/Scraptown | Civil war broke out across Scraptown 9625 | -9/Scraptown | Discovered new exit (range 5) 9628 | -9/Scraptown | Self-destructed Last Messages --------------- Optimus: Don't stick around too long, I wouldn't want the wrong bots to get wind of you helping us. 09620_ ANNOUNCEMENT: The Council has discovered that 0bPrime has been recruiting others in a plan that puts all of Scraptown in danger. 09620_ ANNOUNCEMENT: Evidence is being transmitted to you now... 09620_ ANNOUNCEMENT: This news will hit some of you hard, but given the circumstances we have no choice but to apprehend Optimus and allies. 09622_ Optimus: "Bah, right when we're so close. Don't worry Phasecircuit, they can't stop us now. Get out of here and do your job, we'll deal with this." 09624_ Optimus: "No holds barred, if they're hostile, they are an enemy of the people and we must shoot to kill. Collateral damage is to be expected!" 09625_ EXIT=FOUND Map ----- +----------------------------------------------------+ | | | | | | | | | | | | | | | | | ?????????????????????????????????????????????????? | | ?????????????????????????????????????????????????? | | ?????????????????????????????????????????????????? | | ?????????????????????????????????????????????????? | | ?????????????????????????????????????????????????? | | ?????????????????????????????????????????????????? | | ?????????????????????????????????????????????????? | | ?????????????????????????????????????????????????? | | ?????????????????????????????????????????????????? | | ?????????????????????????????????????????????????? | | ?????????????????????????????????????????????????? | | ?????????????????????????????????????????????????? | | ?????????????????????????????????????????????????? | | ################???####????????"#????????????????? | | ##"""##""|##"""#??## ##??????< #????????????????? | | ##""!##"" ##!!"#### ###### ##???????????????? | | E #???????????????? | | E @ E #???????????????? | | ################### E ###########???????????????? | | ??????????????????## ##?????????????????????????? | | ???????????????????# #??????????????????????????? | | ???????????????????# #??????????????????????????? | | ???????????????????# ###########????????????????? | | "??????????????????# #"""""""""#????????????????? | | "??????????????????# # " " " #????????????????? | | ??????????????????# # #????????????????? | | ???????#######"#### # "# #" #????????????????? | | ########"""" ""# # "#X#? #????????????????? | | """""#""" ""# # "###" #????????????????? | | #"" " # # """"" #????????????????? | | ?#""" "# # #????????????????? | | """""???# "# # #????????????????? | | ?# #????###### ##### ## ########????????????????? | | ## ########### ##### ## #############???????????? | | "" """"""""""" """"" "" "## """""""""???????????? | | "## ""!""""""#??????????? | | "## """""""""#??????????? | | "## !""""#??????????? | | "## """"#??????????? | | " """"#??????????? | | """""""""""""""""""" "## """""""""#??????????? | | """""""""""""""""""" "## """""""""#??????????? | +----------------------------------------------------+ Best States ------------- Heat Dissipation 25 Energy Generation 16 Energy Capacity 800 Matter Stores 300 Matter Capacity 300 Sight Range 16 Terrain Scan Density 10 Armor Coverage 800 Evasion (%) 45 Recoil Reduction 2 Item Schematics ----------------- Deep Structural Scanner | -9/Scraptown | Extrapolated Spk. Treads | -9/Scraptown | Extrapolated Mak. Leg | -9/Scraptown | Extrapolated Mak. Coolant Network | -9/Scraptown | Extrapolated Robot Schematics ------------------ None Fabricated ------------ Nothing Repaired ---------- Nothing Studied --------- None Alien Tech Used ----------------- None Achievements -------------- None Challenges ------------ None Game ------ Seed TimingConceptDeflector Manual? 0 Play Time 00:37:04 Cumulative 584.2 hours Start 2026.07.02 @ 16:00:46 End 2026.07.02 @ 16:56:31 Sessions 1 Manual Loads 0 Difficulty Rogue Special Mode None Game No. 499 Rogue 463 Adventurer 36 Explorer 0 Win Type - Total 5 Types 2/0/0/1/0/0/0/2/0/0 Lore% 84 Gallery% 72 Achievement% 65 Wizard Run 0 Options --------- Layout 2 ASCII 0 Keyboard 0 Movement Numpad Keybinds 0 Fullscreen 1 Font 48/Smallcaps Map View 50x44 Zoom Use 0% Tactical HUD 1 Map Filters NONE Filters NONE Steam 1 RUN: 716371a5-0c7d-4c56-97a5-c442bbe37770